[Event "Late-Titled-Tuesday-Blitz-February-13-2024"]
[Site "Chess.com"]
[Date "2024.02.13"]
[Round "9"]
[White "Witik"]
[Black "snowlord"]
[Result "0-1"]
[WhiteElo "2666"]
[BlackElo "2843"]
[TimeControl "180+1"]
[EndTime "15:46:05 PST"]
[Termination "snowlord won by resignation"]

1. d4 {[%clk 0:02:56.6]} 1... Nf6 {[%clk 0:02:59.6]} 2. c4 {[%clk 0:02:56.5]}
2... e6 {[%clk 0:03:00.1]} 3. Nf3 {[%clk 0:02:56.3]} 3... Bb4+ {[%clk
0:02:59.9]} 4. Bd2 {[%clk 0:02:55.9]} 4... Be7 {[%clk 0:02:58.8]} 5. g3 {[%clk
0:02:53.9]} 5... c5 {[%clk 0:02:58.6]} 6. dxc5 {[%clk 0:02:43.8]} 6... Bxc5
{[%clk 0:02:58.2]} 7. Bg2 {[%clk 0:02:41.4]} 7... O-O {[%clk 0:02:55.5]} 8. O-O
{[%clk 0:02:38.7]} 8... h6 {[%clk 0:02:56]} 9. Nc3 {[%clk 0:02:37.3]} 9... d5
{[%clk 0:02:55.9]} 10. cxd5 {[%clk 0:02:32.4]} 10... exd5 {[%clk 0:02:56.8]} 11.
Rc1 {[%clk 0:02:22.7]} 11... Nc6 {[%clk 0:02:49.1]} 12. Bf4 {[%clk 0:02:16.8]}
12... Bb6 {[%clk 0:02:21.5]} 13. Na4 {[%clk 0:02:00.2]} 13... Re8 {[%clk
0:02:20.1]} 14. Nxb6 {[%clk 0:01:26.9]} 14... axb6 {[%clk 0:02:21]} 15. a3
{[%clk 0:01:24.8]} 15... d4 {[%clk 0:02:21.2]} 16. Re1 {[%clk 0:01:15.1]} 16...
Bf5 {[%clk 0:02:08]} 17. Rxc6 {[%clk 0:01:07]} 17... bxc6 {[%clk 0:02:07.9]} 18.
Nxd4 {[%clk 0:01:07.5]} 18... Be4 {[%clk 0:02:00.2]} 19. f3 {[%clk 0:00:56]}
19... Bg6 {[%clk 0:01:06.5]} 20. e4 {[%clk 0:00:47.7]} 20... Qd7 {[%clk
0:01:06.5]} 21. Be3 {[%clk 0:00:22.8]} 21... c5 {[%clk 0:01:02.3]} 22. Ne2
{[%clk 0:00:22.9]} 22... Qb5 {[%clk 0:00:47.6]} 23. Qc2 {[%clk 0:00:20.1]} 23...
Nd5 {[%clk 0:00:45.8]} 24. Bf2 {[%clk 0:00:20.4]} 24... Rad8 {[%clk 0:00:45.9]}
25. h4 {[%clk 0:00:18.3]} 25... Bh7 {[%clk 0:00:41.9]} 26. Bf1 {[%clk
0:00:17.8]} 26... Ne7 {[%clk 0:00:38.5]} 27. Nc3 {[%clk 0:00:13.5]} 27... Qa5
{[%clk 0:00:37.8]} 28. Bb5 {[%clk 0:00:12.7]} 28... Rf8 {[%clk 0:00:38.2]} 29.
a4 {[%clk 0:00:12.2]} 29... Qa8 {[%clk 0:00:38.1]} 30. Bc4 {[%clk 0:00:12.2]}
30... Nc6 {[%clk 0:00:38.3]} 31. Nd5 {[%clk 0:00:10.9]} 31... Qb7 {[%clk
0:00:34.7]} 32. Qc3 {[%clk 0:00:10.2]} 32... Kh8 {[%clk 0:00:32.4]} 33. h5
{[%clk 0:00:10.2]} 33... Rfe8 {[%clk 0:00:24.1]} 34. g4 {[%clk 0:00:10.7]} 34...
Ne5 {[%clk 0:00:24.3]} 35. Ba2 {[%clk 0:00:07.9]} 35... f6 {[%clk 0:00:24.6]}
36. Bg3 {[%clk 0:00:08.1]} 36... Bg8 {[%clk 0:00:24.9]} 37. Bf4 {[%clk
0:00:04.3]} 37... Bxd5 {[%clk 0:00:16.8]} 38. Bxd5 {[%clk 0:00:04.2]} 38... Rxd5
{[%clk 0:00:17.2]} 39. exd5 {[%clk 0:00:05.1]} 39... Nxf3+ {[%clk 0:00:17.9]}
40. Qxf3 {[%clk 0:00:05.4]} 40... Rxe1+ {[%clk 0:00:18.2]} 41. Kf2 {[%clk
0:00:05]} 41... Re8 {[%clk 0:00:18.9]} 42. d6 {[%clk 0:00:05.5]} 42... Qd7
{[%clk 0:00:17.1]} 43. Kg3 {[%clk 0:00:05.7]} 43... Qxa4 {[%clk 0:00:16.9]} 44.
Qd5 {[%clk 0:00:04.7]} 44... Qd7 {[%clk 0:00:17.1]} 45. Kf3 {[%clk 0:00:04.5]}
45... Rd8 {[%clk 0:00:13]} 46. Qf5 {[%clk 0:00:05.1]} 46... Qc6+ {[%clk
0:00:12.4]} 47. Qe4 {[%clk 0:00:05.8]} 47... Qd7 {[%clk 0:00:11.5]} 48. Qf5
{[%clk 0:00:05.1]} 48... Kg8 {[%clk 0:00:11.5]} 49. Qd5+ {[%clk 0:00:03]} 49...
Qf7 {[%clk 0:00:11]} 50. Qf5 {[%clk 0:00:03.6]} 50... Qc4 {[%clk 0:00:09.4]} 51.
Qe4 {[%clk 0:00:03.7]} 51... Qb3+ {[%clk 0:00:07.2]} 52. Kg2 {[%clk 0:00:02.2]}
52... Qxb2+ {[%clk 0:00:07.5]} 53. Kg3 {[%clk 0:00:02.9]} 53... Qb3+ {[%clk
0:00:08]} 54. Kh4 {[%clk 0:00:03.2]} 54... Qf7 {[%clk 0:00:08.5]} 55. Qc6 {[%clk
0:00:03.8]} 55... Qd7 {[%clk 0:00:06.3]} 56. Qxb6 {[%clk 0:00:04.4]} 56... c4
{[%clk 0:00:07.1]} 57. Qc5 {[%clk 0:00:04.8]} 57... Rc8 {[%clk 0:00:07.7]} 58.
Qd5+ {[%clk 0:00:05.2]} 58... Qf7 {[%clk 0:00:08.2]} 59. d7 {[%clk 0:00:04.9]}
59... Rd8 {[%clk 0:00:06.8]} 60. Qd4 {[%clk 0:00:04.9]} 60... Rxd7 {[%clk
0:00:06.8]} 61. Qb6 {[%clk 0:00:05.3]} 61... Re7 {[%clk 0:00:05.6]} 62. Qc6
{[%clk 0:00:05.7]} 62... Re8 {[%clk 0:00:06.5]} 63. Kg3 {[%clk 0:00:05.2]} 63...
Qe6 {[%clk 0:00:07]} 64. Qc7 {[%clk 0:00:05.1]} 64... Rf8 {[%clk 0:00:07.1]} 65.
Kh4 {[%clk 0:00:05.3]} 65... f5 {[%clk 0:00:07.1]} 66. g5 {[%clk 0:00:05.3]}
66... hxg5+ {[%clk 0:00:07.7]} 67. Bxg5 {[%clk 0:00:05.6]} 67... f4 {[%clk
0:00:08.3]} 68. Bxf4 {[%clk 0:00:04.6]} 68... Qe4 {[%clk 0:00:08.2]} 69. Kg5
{[%clk 0:00:04.5]} 69... Qxf4+ {[%clk 0:00:06.8]} 70. Qxf4 {[%clk 0:00:04.4]}
70... Rxf4 {[%clk 0:00:07.7]} 71. Kxf4 {[%clk 0:00:05.1]} 71... Kh7 {[%clk
0:00:08.5]} 72. Ke4 {[%clk 0:00:04.7]} 72... Kh6 {[%clk 0:00:09.1]} 73. Kd4
{[%clk 0:00:05.4]} 73... Kxh5 {[%clk 0:00:09.9]} 74. Kxc4 {[%clk 0:00:06.1]}
74... Kg4 {[%clk 0:00:10.6]} 75. Kd3 {[%clk 0:00:06.8]} 75... Kf3 {[%clk
0:00:11.2]} 0-1

[Event "Late-Titled-Tuesday-Blitz-February-13-2024"]
[Site "Chess.com"]
[Date "2024.02.13"]
[Round "9"]
[White "Doomfist26"]
[Black "OK97"]
[Result "1/2-1/2"]
[WhiteElo "2654"]
[BlackElo "2830"]
[TimeControl "180+1"]
[EndTime "15:46:09 PST"]
[Termination "Game drawn - insufficient material"]

1. e4 {[%clk 0:03:00.9]} 1... Nc6 {[%clk 0:02:59.6]} 2. Nf3 {[%clk 0:02:58.2]}
2... d6 {[%clk 0:02:59.8]} 3. d4 {[%clk 0:02:58.6]} 3... Nf6 {[%clk 0:02:59.8]}
4. d5 {[%clk 0:02:57.6]} 4... Nb8 {[%clk 0:02:59.6]} 5. Nc3 {[%clk 0:02:57]}
5... g6 {[%clk 0:02:59.5]} 6. Bd3 {[%clk 0:02:56.8]} 6... Bg7 {[%clk 0:02:59.4]}
7. O-O {[%clk 0:02:52.8]} 7... O-O {[%clk 0:02:59.2]} 8. Re1 {[%clk 0:02:53.4]}
8... e6 {[%clk 0:02:58.9]} 9. h3 {[%clk 0:02:52.9]} 9... Re8 {[%clk 0:02:54.7]}
10. Bf4 {[%clk 0:02:47]} 10... exd5 {[%clk 0:02:30.4]} 11. exd5 {[%clk
0:02:44.1]} 11... Nbd7 {[%clk 0:02:31]} 12. Qd2 {[%clk 0:02:42.8]} 12... Nc5
{[%clk 0:02:27]} 13. Bb5 {[%clk 0:02:26.3]} 13... Bd7 {[%clk 0:02:22.6]} 14.
Bxd7 {[%clk 0:02:24.3]} 14... Qxd7 {[%clk 0:02:21.9]} 15. Bh6 {[%clk 0:02:19.4]}
15... Rxe1+ {[%clk 0:01:47.7]} 16. Rxe1 {[%clk 0:02:18.8]} 16... Re8 {[%clk
0:01:48.4]} 17. Rxe8+ {[%clk 0:02:16.3]} 17... Qxe8 {[%clk 0:01:49.3]} 18. Bxg7
{[%clk 0:02:16.6]} 18... Kxg7 {[%clk 0:01:49.1]} 19. Qd4 {[%clk 0:02:17.3]}
19... a5 {[%clk 0:01:41.6]} 20. g4 {[%clk 0:02:11.5]} 20... h6 {[%clk
0:01:39.8]} 21. h4 {[%clk 0:02:10.7]} 21... g5 {[%clk 0:01:32.5]} 22. hxg5
{[%clk 0:02:10.8]} 22... hxg5 {[%clk 0:01:33.4]} 23. Nxg5 {[%clk 0:02:07.7]}
23... Qe1+ {[%clk 0:01:27.9]} 24. Kg2 {[%clk 0:02:04.1]} 24... Kg6 {[%clk
0:00:56.6]} 25. Nf3 {[%clk 0:01:59.5]} 25... Qe7 {[%clk 0:00:52.6]} 26. Qf4
{[%clk 0:01:43.7]} 26... Nfe4 {[%clk 0:00:43.3]} 27. Qf5+ {[%clk 0:01:20.7]}
27... Kg7 {[%clk 0:00:43.6]} 28. Nxe4 {[%clk 0:01:21.2]} 28... Qxe4 {[%clk
0:00:36.5]} 29. Qxe4 {[%clk 0:00:45.5]} 29... Nxe4 {[%clk 0:00:37.4]} 30. Nd4
{[%clk 0:00:25.1]} 30... Nf6 {[%clk 0:00:37]} 31. Nb5 {[%clk 0:00:24.7]} 31...
Nxd5 {[%clk 0:00:32.8]} 32. c4 {[%clk 0:00:24.5]} 32... Nf4+ {[%clk 0:00:24.6]}
33. Kf3 {[%clk 0:00:22.7]} 33... Ne6 {[%clk 0:00:23.1]} 34. Ke4 {[%clk
0:00:20.5]} 34... Kf6 {[%clk 0:00:21.8]} 35. f4 {[%clk 0:00:20.7]} 35... Ke7
{[%clk 0:00:22.4]} 36. f5 {[%clk 0:00:16.8]} 36... Nc5+ {[%clk 0:00:22.3]} 37.
Ke3 {[%clk 0:00:17.5]} 37... c6 {[%clk 0:00:20.2]} 38. Nc3 {[%clk 0:00:17.1]}
38... Kf6 {[%clk 0:00:10]} 39. b3 {[%clk 0:00:17.3]} 39... Ke5 {[%clk
0:00:09.1]} 40. Ne2 {[%clk 0:00:14.6]} 40... Ne4 {[%clk 0:00:06.9]} 41. Nd4
{[%clk 0:00:11.4]} 41... Nc5 {[%clk 0:00:04.8]} 42. Nf3+ {[%clk 0:00:11.2]}
42... Kf6 {[%clk 0:00:05.4]} 43. Ne1 {[%clk 0:00:09.1]} 43... Nd7 {[%clk
0:00:05.7]} 44. Kf4 {[%clk 0:00:09.4]} 44... Ne5 {[%clk 0:00:05.8]} 45. g5+
{[%clk 0:00:09.9]} 45... Ke7 {[%clk 0:00:06.3]} 46. Ke4 {[%clk 0:00:09.9]} 46...
Nd7 {[%clk 0:00:06.4]} 47. Ng2 {[%clk 0:00:09.9]} 47... Nc5+ {[%clk 0:00:06.7]}
48. Kd4 {[%clk 0:00:10.6]} 48... Nd7 {[%clk 0:00:06.3]} 49. Ne3 {[%clk
0:00:09.5]} 49... Ne5 {[%clk 0:00:06.6]} 50. Ke4 {[%clk 0:00:08.5]} 50... Nd7
{[%clk 0:00:06.5]} 51. Ng4 {[%clk 0:00:08.1]} 51... Nc5+ {[%clk 0:00:06.9]} 52.
Kd4 {[%clk 0:00:08.6]} 52... Nd7 {[%clk 0:00:07.2]} 53. Nf2 {[%clk 0:00:07.9]}
53... Ne5 {[%clk 0:00:06.9]} 54. Ke4 {[%clk 0:00:08.3]} 54... Nd7 {[%clk
0:00:07.1]} 55. Nd3 {[%clk 0:00:09]} 55... Ke8 {[%clk 0:00:04.2]} 56. a3 {[%clk
0:00:09.1]} 56... Ke7 {[%clk 0:00:04.7]} 57. b4 {[%clk 0:00:09.6]} 57... axb4
{[%clk 0:00:05.1]} 58. axb4 {[%clk 0:00:09.8]} 58... Nb6 {[%clk 0:00:05.7]} 59.
Kd4 {[%clk 0:00:09.2]} 59... Nd7 {[%clk 0:00:05]} 60. c5 {[%clk 0:00:06.1]}
60... d5 {[%clk 0:00:05.1]} 61. Ne5 {[%clk 0:00:05.9]} 61... Nxe5 {[%clk
0:00:04.9]} 62. Kxe5 {[%clk 0:00:06]} 62... f6+ {[%clk 0:00:05.6]} 63. gxf6+
{[%clk 0:00:05.1]} 63... Kf7 {[%clk 0:00:06.2]} 64. b5 {[%clk 0:00:05]} 64...
cxb5 {[%clk 0:00:04.7]} 65. Kxd5 {[%clk 0:00:04.9]} 65... Kxf6 {[%clk
0:00:05.4]} 66. Kd4 {[%clk 0:00:02.8]} 66... Kxf5 {[%clk 0:00:05.7]} 67. Kc3
{[%clk 0:00:03.5]} 67... Ke5 {[%clk 0:00:05.1]} 68. Kb4 {[%clk 0:00:04.1]} 68...
Kd5 {[%clk 0:00:05.5]} 69. Kxb5 {[%clk 0:00:04.6]} 69... Kd4 {[%clk 0:00:05.9]}
70. Kb6 {[%clk 0:00:05]} 70... Kd5 {[%clk 0:00:06.4]} 71. Kb5 {[%clk 0:00:05.3]}
71... Kd4 {[%clk 0:00:06.8]} 72. c6 {[%clk 0:00:06]} 72... bxc6+ {[%clk
0:00:06.9]} 73. Kxc6 {[%clk 0:00:06.9]} 1/2-1/2

[Event "Late-Titled-Tuesday-Blitz-February-13-2024"]
[Site "Chess.com"]
[Date "2024.02.13"]
[Round "9"]
[White "MoreChessJulia"]
[Black "PushingpawnsNYC"]
[Result "0-1"]
[WhiteElo "2046"]
[BlackElo "2352"]
[TimeControl "180+1"]
[EndTime "15:46:11 PST"]
[Termination "PushingpawnsNYC won by checkmate"]

1. d4 {[%clk 0:03:00.2]} 1... d5 {[%clk 0:02:54.3]} 2. c4 {[%clk 0:02:59.2]}
2... e6 {[%clk 0:02:54.4]} 3. Nc3 {[%clk 0:02:59.3]} 3... Nf6 {[%clk 0:02:54.2]}
4. cxd5 {[%clk 0:02:59.5]} 4... exd5 {[%clk 0:02:54.1]} 5. Bg5 {[%clk
0:02:58.9]} 5... Be7 {[%clk 0:02:49]} 6. e3 {[%clk 0:02:58.1]} 6... O-O {[%clk
0:02:48.5]} 7. Bd3 {[%clk 0:02:58.2]} 7... c6 {[%clk 0:02:44.6]} 8. Nge2 {[%clk
0:02:57.2]} 8... Ne4 {[%clk 0:02:36.6]} 9. Bxe7 {[%clk 0:02:50.2]} 9... Qxe7
{[%clk 0:02:36.3]} 10. O-O {[%clk 0:02:36.3]} 10... f5 {[%clk 0:02:16]} 11. Ng3
{[%clk 0:02:23.2]} 11... Nd7 {[%clk 0:01:58.7]} 12. Re1 {[%clk 0:02:17.8]} 12...
Ndf6 {[%clk 0:01:57.7]} 13. Qb3 {[%clk 0:02:09.6]} 13... Be6 {[%clk 0:01:48.1]}
14. f3 {[%clk 0:02:07.6]} 14... Nxg3 {[%clk 0:01:40.8]} 15. hxg3 {[%clk
0:02:06.6]} 15... Qc7 {[%clk 0:01:39.2]} 16. Kf2 {[%clk 0:01:58.6]} 16... Ne4+
{[%clk 0:01:21.8]} 17. Nxe4 {[%clk 0:01:54.1]} 17... fxe4 {[%clk 0:01:21.8]} 18.
Bxe4 {[%clk 0:01:53.8]} 18... Rae8 {[%clk 0:01:13.2]} 19. Bc2 {[%clk 0:01:51.4]}
19... Re7 {[%clk 0:01:03.8]} 20. Rh1 {[%clk 0:01:50.4]} 20... g6 {[%clk
0:01:03.3]} 21. Qd3 {[%clk 0:01:43.4]} 21... Bf5 {[%clk 0:01:02.8]} 22. Qd2
{[%clk 0:01:42]} 22... Bxc2 {[%clk 0:00:59]} 23. Qxc2 {[%clk 0:01:41]} 23...
Rfe8 {[%clk 0:00:59.1]} 24. Rhe1 {[%clk 0:01:38.2]} 24... b6 {[%clk 0:00:54.7]}
25. b4 {[%clk 0:01:37]} 25... Qd6 {[%clk 0:00:46.1]} 26. a3 {[%clk 0:01:28.9]}
26... Rc8 {[%clk 0:00:30.4]} 27. Rac1 {[%clk 0:01:24.3]} 27... Rec7 {[%clk
0:00:24]} 28. Qd2 {[%clk 0:01:18.6]} 28... c5 {[%clk 0:00:19.5]} 29. dxc5 {[%clk
0:01:17.5]} 29... bxc5 {[%clk 0:00:20]} 30. Rxc5 {[%clk 0:01:04.1]} 30... Rxc5
{[%clk 0:00:20.9]} 31. bxc5 {[%clk 0:01:04.4]} 31... Rxc5 {[%clk 0:00:20.6]} 32.
Rc1 {[%clk 0:01:04.9]} 32... Rb5 {[%clk 0:00:17.8]} 33. Rc8+ {[%clk 0:01:03.1]}
33... Kg7 {[%clk 0:00:16.4]} 34. Qc3+ {[%clk 0:01:02.1]} 34... Kh6 {[%clk
0:00:16.6]} 35. Rc7 {[%clk 0:00:43.3]} 35... Rb2+ {[%clk 0:00:12.3]} 36. Qxb2
{[%clk 0:00:42.3]} 36... Qxc7 {[%clk 0:00:12.7]} 37. Qd2 {[%clk 0:00:40]} 37...
Qd6 {[%clk 0:00:11.5]} 38. Qd3 {[%clk 0:00:39.4]} 38... a5 {[%clk 0:00:10.9]}
39. g4 {[%clk 0:00:39.3]} 39... Qc5 {[%clk 0:00:09.3]} 40. f4 {[%clk 0:00:37]}
40... a4 {[%clk 0:00:08.9]} 41. g5+ {[%clk 0:00:36.3]} 41... Kg7 {[%clk
0:00:05]} 42. Qd4+ {[%clk 0:00:35.1]} 42... Qxd4 {[%clk 0:00:05.2]} 43. exd4
{[%clk 0:00:35.2]} 43... Kf7 {[%clk 0:00:05.7]} 44. Ke3 {[%clk 0:00:35]} 44...
Ke6 {[%clk 0:00:06]} 45. Kd3 {[%clk 0:00:34.8]} 45... Kf5 {[%clk 0:00:06.3]} 46.
g3 {[%clk 0:00:34.3]} 46... Kg4 {[%clk 0:00:06.6]} 47. Kc3 {[%clk 0:00:28.2]}
47... Kxg3 {[%clk 0:00:06.9]} 48. Kb4 {[%clk 0:00:28.3]} 48... Kxf4 {[%clk
0:00:07.1]} 49. Kxa4 {[%clk 0:00:28.6]} 49... Ke4 {[%clk 0:00:05.2]} 50. Kb4
{[%clk 0:00:28.1]} 50... Kxd4 {[%clk 0:00:05.5]} 51. a4 {[%clk 0:00:28]} 51...
Ke3 {[%clk 0:00:05.1]} 52. a5 {[%clk 0:00:28.4]} 52... d4 {[%clk 0:00:05.8]} 53.
a6 {[%clk 0:00:28.4]} 53... d3 {[%clk 0:00:06.5]} 54. a7 {[%clk 0:00:26.1]}
54... d2 {[%clk 0:00:06.9]} 55. a8=Q {[%clk 0:00:22.2]} 55... d1=Q {[%clk
0:00:06.7]} 56. Qa7+ {[%clk 0:00:19]} 56... Qd4+ {[%clk 0:00:05.8]} 57. Qxd4+
{[%clk 0:00:17.6]} 57... Kxd4 {[%clk 0:00:06.5]} 58. Kb5 {[%clk 0:00:16.1]}
58... Ke5 {[%clk 0:00:06.6]} 59. Kc5 {[%clk 0:00:16.6]} 59... Kf5 {[%clk
0:00:07.1]} 60. Kd5 {[%clk 0:00:17.1]} 60... Kxg5 {[%clk 0:00:07.7]} 61. Ke4
{[%clk 0:00:17.6]} 61... Kg4 {[%clk 0:00:08.1]} 62. Ke3 {[%clk 0:00:17.4]} 62...
Kg3 {[%clk 0:00:08]} 63. Ke2 {[%clk 0:00:17.4]} 63... Kg2 {[%clk 0:00:08.1]} 64.
Ke3 {[%clk 0:00:17.4]} 64... h5 {[%clk 0:00:08.8]} 65. Kf4 {[%clk 0:00:17.6]}
65... h4 {[%clk 0:00:09.2]} 66. Kg4 {[%clk 0:00:17.8]} 66... h3 {[%clk
0:00:09.7]} 67. Kg5 {[%clk 0:00:16.8]} 67... h2 {[%clk 0:00:10.1]} 68. Kxg6
{[%clk 0:00:12.5]} 68... h1=Q {[%clk 0:00:10.4]} 69. Kf5 {[%clk 0:00:12.9]}
69... Qe1 {[%clk 0:00:10.1]} 70. Kf4 {[%clk 0:00:13]} 70... Qe2 {[%clk
0:00:10.2]} 71. Kf5 {[%clk 0:00:13.2]} 71... Qd3+ {[%clk 0:00:09.7]} 72. Kf4
{[%clk 0:00:13.3]} 72... Kf2 {[%clk 0:00:09.9]} 73. Ke5 {[%clk 0:00:14]} 73...
Qc4 {[%clk 0:00:10.1]} 74. Kf6 {[%clk 0:00:14.5]} 74... Ke3 {[%clk 0:00:10.3]}
75. Ke5 {[%clk 0:00:15.1]} 75... Qc5+ {[%clk 0:00:10.2]} 76. Ke6 {[%clk
0:00:15]} 76... Ke4 {[%clk 0:00:10.6]} 77. Kf6 {[%clk 0:00:12.5]} 77... Qd5
{[%clk 0:00:09.2]} 78. Ke7 {[%clk 0:00:11.9]} 78... Qc6 {[%clk 0:00:09.4]} 79.
Kd8 {[%clk 0:00:12.1]} 79... Qb7 {[%clk 0:00:09.5]} 80. Ke8 {[%clk 0:00:12.2]}
80... Kf5 {[%clk 0:00:09.9]} 81. Kf8 {[%clk 0:00:12.3]} 81... Kg6 {[%clk
0:00:10]} 82. Ke8 {[%clk 0:00:12.6]} 82... Kf6 {[%clk 0:00:10]} 83. Kd8 {[%clk
0:00:11.1]} 83... Ke6 {[%clk 0:00:09.8]} 84. Ke8 {[%clk 0:00:10.1]} 84... Qe7#
{[%clk 0:00:10.4]} 0-1

[Event "Late-Titled-Tuesday-Blitz-February-13-2024"]
[Site "Chess.com"]
[Date "2024.02.13"]
[Round "9"]
[White "saikrishnaReturns"]
[Black "Durarbayli"]
[Result "0-1"]
[WhiteElo "2784"]
[BlackElo "2940"]
[TimeControl "180+1"]
[EndTime "15:46:25 PST"]
[Termination "Durarbayli won by resignation"]

1. Nf3 {[%clk 0:02:56]} 1... Nf6 {[%clk 0:02:58.9]} 2. g3 {[%clk 0:02:56.8]}
2... b6 {[%clk 0:02:59]} 3. Bg2 {[%clk 0:02:57.7]} 3... Bb7 {[%clk 0:02:59.7]}
4. O-O {[%clk 0:02:58.4]} 4... e6 {[%clk 0:03:00.3]} 5. d3 {[%clk 0:02:57.9]}
5... d5 {[%clk 0:02:59.5]} 6. Nbd2 {[%clk 0:02:53.5]} 6... Nbd7 {[%clk
0:02:58.6]} 7. Re1 {[%clk 0:02:51]} 7... Bc5 {[%clk 0:02:36.1]} 8. h3 {[%clk
0:02:34.3]} 8... O-O {[%clk 0:02:31.7]} 9. e4 {[%clk 0:02:33.3]} 9... dxe4
{[%clk 0:02:32.6]} 10. dxe4 {[%clk 0:02:33.8]} 10... b5 {[%clk 0:02:25.5]} 11.
Qe2 {[%clk 0:02:19.5]} 11... a6 {[%clk 0:02:22.3]} 12. Kh2 {[%clk 0:02:05.4]}
12... e5 {[%clk 0:02:05.2]} 13. Nh4 {[%clk 0:02:03]} 13... Re8 {[%clk 0:01:56]}
14. Nf5 {[%clk 0:01:51.8]} 14... g6 {[%clk 0:01:32.4]} 15. Nh6+ {[%clk
0:01:49.9]} 15... Kg7 {[%clk 0:01:31.7]} 16. Nf1 {[%clk 0:01:47.3]} 16... Nf8
{[%clk 0:01:25]} 17. Rd1 {[%clk 0:01:39.3]} 17... Qc8 {[%clk 0:01:17.7]} 18. Ng4
{[%clk 0:01:25.3]} 18... Nxg4+ {[%clk 0:01:14.9]} 19. hxg4 {[%clk 0:01:26.2]}
19... Ne6 {[%clk 0:01:14.2]} 20. g5 {[%clk 0:01:26.5]} 20... Nd4 {[%clk
0:01:10.4]} 21. Qd3 {[%clk 0:01:18.9]} 21... Qg4 {[%clk 0:01:04.9]} 22. c3
{[%clk 0:00:49.2]} 22... Qh5+ {[%clk 0:00:57]} 23. Bh3 {[%clk 0:00:45.3]} 23...
Nf3+ {[%clk 0:00:37.9]} 24. Kg2 {[%clk 0:00:45.3]} 24... Rad8 {[%clk 0:00:38]}
25. Qxf3 {[%clk 0:00:36.3]} 25... Qxf3+ {[%clk 0:00:35.4]} 26. Kxf3 {[%clk
0:00:37.2]} 26... Rxd1 {[%clk 0:00:35.4]} 27. Ke2 {[%clk 0:00:34.1]} 27... Red8
{[%clk 0:00:32.9]} 28. b4 {[%clk 0:00:30.4]} 28... Bb6 {[%clk 0:00:26.3]} 29.
Bg2 {[%clk 0:00:18.3]} 29... a5 {[%clk 0:00:23.5]} 30. bxa5 {[%clk 0:00:15.2]}
30... Bxa5 {[%clk 0:00:23.4]} 31. Bb2 {[%clk 0:00:15.8]} 31... Rxa1 {[%clk
0:00:21.4]} 32. Bxa1 {[%clk 0:00:16.7]} 32... b4 {[%clk 0:00:21.5]} 33. cxb4
{[%clk 0:00:16.4]} 33... Ba6+ {[%clk 0:00:19.9]} 34. Kf3 {[%clk 0:00:12.4]}
34... Bxb4 {[%clk 0:00:15.8]} 35. Bxe5+ {[%clk 0:00:12.4]} 35... Kg8 {[%clk
0:00:16.5]} 36. Bxc7 {[%clk 0:00:12.5]} 36... Rd3+ {[%clk 0:00:13.2]} 37. Ne3
{[%clk 0:00:12.7]} 37... Rd2 {[%clk 0:00:13.8]} 38. Bb6 {[%clk 0:00:11]} 38...
Be2+ {[%clk 0:00:11.7]} 39. Kf4 {[%clk 0:00:10.2]} 39... Rxa2 {[%clk 0:00:11.3]}
40. Nd5 {[%clk 0:00:10]} 40... Bd6+ {[%clk 0:00:11.3]} 41. e5 {[%clk 0:00:10.5]}
41... Ba3 {[%clk 0:00:10.3]} 42. Be4 {[%clk 0:00:10.5]} 42... Bc1+ {[%clk
0:00:09.8]} 43. Be3 {[%clk 0:00:08.6]} 43... Bxe3+ {[%clk 0:00:09.2]} 44. Kxe3
{[%clk 0:00:09.5]} 44... Bc4 {[%clk 0:00:08.8]} 45. Nf6+ {[%clk 0:00:09]} 45...
Kh8 {[%clk 0:00:09.3]} 46. f3 {[%clk 0:00:09]} 46... Ra3+ {[%clk 0:00:09.3]} 47.
Kf4 {[%clk 0:00:09.1]} 47... Be2 {[%clk 0:00:09.9]} 48. g4 {[%clk 0:00:09.1]}
48... Kg7 {[%clk 0:00:09.8]} 49. Ne8+ {[%clk 0:00:08.4]} 49... Kh8 {[%clk
0:00:10.2]} 50. Nf6 {[%clk 0:00:09.3]} 50... Bb5 {[%clk 0:00:10.2]} 51. Bd5
{[%clk 0:00:09.1]} 51... Kg7 {[%clk 0:00:10.8]} 52. Ne4 {[%clk 0:00:09.2]} 52...
Ra4 {[%clk 0:00:10.2]} 53. Kg3 {[%clk 0:00:09]} 53... Bc4 {[%clk 0:00:08]} 54.
Bc6 {[%clk 0:00:08.8]} 54... Ra6 {[%clk 0:00:07.3]} 55. Bb7 {[%clk 0:00:09]}
55... Ra3 {[%clk 0:00:07]} 56. Kf4 {[%clk 0:00:08.7]} 56... h6 {[%clk
0:00:05.7]} 57. gxh6+ {[%clk 0:00:08.6]} 57... Kxh6 {[%clk 0:00:06.6]} 58. g5+
{[%clk 0:00:07.9]} 58... Kg7 {[%clk 0:00:06.5]} 59. Nf6 {[%clk 0:00:08.3]} 59...
Be6 {[%clk 0:00:06.9]} 60. Ne8+ {[%clk 0:00:08.1]} 60... Kf8 {[%clk 0:00:07]}
61. Nf6 {[%clk 0:00:08.9]} 61... Ra4+ {[%clk 0:00:07.2]} 62. Kg3 {[%clk
0:00:09.1]} 62... Ra3 {[%clk 0:00:08.1]} 63. Kf4 {[%clk 0:00:09.5]} 63... Ke7
{[%clk 0:00:08.7]} 64. Ng8+ {[%clk 0:00:09.6]} 64... Kd8 {[%clk 0:00:08.6]} 65.
Nf6 {[%clk 0:00:10.5]} 65... Ra4+ {[%clk 0:00:08.9]} 66. Be4 {[%clk 0:00:10.8]}
66... Kc7 {[%clk 0:00:08.7]} 67. Kg3 {[%clk 0:00:11]} 67... Kb6 {[%clk
0:00:08.5]} 68. Ne8 {[%clk 0:00:11]} 68... Kc5 {[%clk 0:00:08.5]} 69. Nd6 {[%clk
0:00:10.6]} 69... Kd4 {[%clk 0:00:06.6]} 70. Kf4 {[%clk 0:00:10.6]} 70... Ra1
{[%clk 0:00:06.6]} 71. Nb5+ {[%clk 0:00:10.5]} 71... Kc5 {[%clk 0:00:07.3]} 72.
Nd6 {[%clk 0:00:10.8]} 72... Rh1 {[%clk 0:00:07.3]} 73. Kg3 {[%clk 0:00:09.5]}
73... Rg1+ {[%clk 0:00:07.4]} 74. Kf4 {[%clk 0:00:09.9]} 74... Ra1 {[%clk
0:00:07.7]} 75. Ne8 {[%clk 0:00:09]} 75... Kd4 {[%clk 0:00:06]} 76. Ng7 {[%clk
0:00:09]} 76... Bc4 {[%clk 0:00:05.4]} 77. e6 {[%clk 0:00:09.4]} 77... fxe6
{[%clk 0:00:06.2]} 78. Bxg6 {[%clk 0:00:09.5]} 78... e5+ {[%clk 0:00:07.1]} 79.
Kg3 {[%clk 0:00:09.5]} 79... Bd5 {[%clk 0:00:06.5]} 80. Nf5+ {[%clk 0:00:09.6]}
80... Kc5 {[%clk 0:00:06.9]} 81. Ne3 {[%clk 0:00:09.7]} 81... Bc6 {[%clk
0:00:06.5]} 82. Be4 {[%clk 0:00:09.2]} 82... Bxe4 {[%clk 0:00:06.2]} 83. fxe4
{[%clk 0:00:10.1]} 83... Ra3 {[%clk 0:00:06.2]} 84. Kf3 {[%clk 0:00:10.4]} 84...
Kd4 {[%clk 0:00:06]} 85. g6 {[%clk 0:00:10.9]} 85... Rxe3+ {[%clk 0:00:06.6]}
86. Kg4 {[%clk 0:00:11.5]} 86... Rxe4+ {[%clk 0:00:06.7]} 87. Kf5 {[%clk
0:00:12.1]} 87... Re1 {[%clk 0:00:07.3]} 88. g7 {[%clk 0:00:12.3]} 88... Rg1
{[%clk 0:00:08.2]} 89. Kf6 {[%clk 0:00:12.8]} 89... Rxg7 {[%clk 0:00:08.6]} 90.
Kxg7 {[%clk 0:00:12.7]} 90... e4 {[%clk 0:00:09.5]} 91. Kf6 {[%clk 0:00:13.2]}
91... e3 {[%clk 0:00:10.4]} 0-1